Cogmind - Beta 16.1 @@@ ROGUE MODE // 2026.06.19 @ 00:15:34 Player: KURIIRI Result: Self-destructed Performance ------------- Evolutions (4) 2000 Regions Visited (5) 1000 Robots Destroyed (47) 235 Value Destroyed (1250) 1250 Prototype IDs (17) 340 Alien Tech Used (0) 0 Bonus (800) 800 TOTAL SCORE: 5625 Bonus ------- Registered with UFD 300 Met Optimus in HQ 500 Cogmind --------- Core Integrity 636/850 Matter 252/300 Energy 148/150 System Corruption 4% Temperature Cool (4) Movement Flying (34) Location -6/Factory Parts ------- > --- POWER (1) -------- Micro Nuclear Core > --- PROPULSION (5) --- Airjet Nuclear Pulse Thruster Cooled Cesium-ion Thruster > --- UTILITY (7) ------ Advanced Visual Processing Unit Advanced Sensor Array Improved Signal Interpreter Transport Network Coupler Improved Melee Analysis Suite Improved Melee Analysis Suite Makeshift System Shield > --- WEAPON (2) ------- Impact Mace > --- INVENTORY (5) ---- Weapon Mount Transmission Jammer Layered Light Armor Plating Magnetic Acceleration Cannon Multitool Peak State ------------ > --- POWER ------------ Micro Nuclear Core > --- PROPULSION ------- Gravmag System Gravmag System Gravmag System Gravmag System Cesium-ion Thruster > --- UTILITY ---------- Medium Storage Unit Advanced Visual Processing Unit Advanced Sensor Array Improved Signal Interpreter Reflective Plating Hacking Suite Makeshift System Shield > --- WEAPON ----------- Flak Gun Coil Gun > --- INVENTORY -------- Light Deuterium Engine Light Fission Core Cesium-ion Thruster Structural Scanner Transport Network Coupler Transmission Jammer Reaction Control System Magnetic Acceleration Cannon Multitool Power Maul [Rating: 57] Favorites ----------- Power Ion Engine Engine Ion Engine Power Core Micro Nuclear Core Propulsion Spiked Treads Treads Spiked Treads Leg Aluminum Leg Wheel Compact Wheel Hover Unit Gravmag System Flight Unit Cesium-ion Thruster Utility Large Storage Unit Device Improved Heat Sink Storage Large Storage Unit Processor Advanced Visual Processing Unit Hackware Makeshift System Shield Protection Medium Armor Plating Weapon Subdweller Beam Cannon Energy Gun Spread Laser Energy Cannon Subdweller Beam Cannon Ballistic Gun Subdweller Machine Gun Ballistic Cannon Antimatter Cannon Special Weapon Multitool Impact Weapon Impact Mace Build | -11 -10 -10 -8 -8 -6 ------- Run | Yrd Mat Sub Rec Scr Fac Slots Evolved 8 | . . . . . 8 Power . | . . . . . . Propulsion 3 | . . . . . 3 Utility 5 | . . . . . 5 Weapon . | . . . . . . Parts Attached 62 | 2 14 11 2 3 30 Power 5 | . 2 1 . 1 1 Engine 4 | . 2 1 . 1 . Core 1 | . . . . . 1 Reactor . | . . . . . . Propulsion 15 | . 2 3 . 2 8 Treads 4 | . 2 2 . . . Leg . | . . . . . . Wheel 1 | . . 1 . . . Hover 5 | . . . . . 5 Flight 5 | . . . . 2 3 Utility 25 | 1 6 1 2 . 15 Device 8 | 1 3 . . . 4 Storage 3 | . 1 . 1 . 1 Processor 7 | . . . . . 7 Hackware 2 | . . . 1 . 1 Protection 5 | . 2 1 . . 2 Artifact . | . . . . . . Weapon 17 | 1 4 6 . . 6 Energy Gun 5 | 1 3 1 . . . Energy Cannon 3 | . . 3 . . . Ballistic Gun 5 | . 1 2 . . 2 Ballistic Cannon 1 | . . . . . 1 Launcher . | . . . . . . Special Weapon 1 | . . . . . 1 Impact Weapon 2 | . . . . . 2 Slashing Weapon . | . . . . . . Piercing Weapon . | . . . . . . Special Melee Weapon . | . . . . . . Unidentified Prototypes 3 | . . . . . 3 Parts Lost 11 | . 1 2 . . 8 Power . | . . . . . . Propulsion 7 | . . 1 . . 6 Utility 3 | . . 1 . . 2 Weapon 1 | . 1 . . . . Highest Loss Streak 2 | . 1 1 . . 2 To Critical Strikes 1 | . . 1 . . . Average Backups 13 | 6 9 14 14 16 7 Power . | 1 1 1 . . 1 Propulsion 2 | 4 2 1 3 2 . Utility 6 | . 2 6 6 9 3 Weapon 2 | 1 2 3 3 3 1 Tool/Special . | . . . . . . Unused Backups 22 | 5 3 3 1 . 10 Power 2 | 1 . . . . 1 Propulsion 4 | 2 1 . 1 . . Utility 6 | 1 . 1 . . 4 Weapon 9 | 1 2 1 . . 5 Tool/Special 1 | . . 1 . . . Average Slot Usage (%) 95 | . 97 99 100 91 84 Engine 12 | . 13 14 14 14 . Treads 23 | . 12 27 28 28 . Leg 1 | . 14 . . . . Hover 1 | . . . . . 15 Device 1 | . 9 . . . 3 Storage 13 | . 14 14 14 14 3 Processor 1 | . . . . . 20 Hackware 6 | . . . 7 14 10 Protection 6 | . 3 14 6 . 3 Energy Gun 7 | . 26 18 . . . Energy Cannon 13 | . . 3 28 19 . Ballistic Gun 2 | . . 6 . . 2 Peak Build Rating 57 | 7 13 15 17 18 57 Average Rating 17 | 6 11 13 16 16 46 On Entrance 12 | 6 7 12 15 17 18 Avg Prop Armor Cover (%) 4 | . . 8 . . 4 Naked Turns . | . . . . . . Heaviest Build 61 | 12 36 48 61 61 30 Greatest Support 40 | 20 40 40 40 40 36 Greatest Overweight (x) 9 | . 9 2 1 2 2 Average Overweight (x) . | . . . 1 1 . Largest Inventory Capacity 20 | 8 15 15 20 20 20 Average Capacity 15 | 8 11 15 15 20 8 Most Carried 19 | 6 15 15 17 19 18 Average Carried 14 | 6 9 14 15 17 7 Final Capacity 20 | 8 15 15 20 20 5 Final Carried 19 | 6 15 15 17 19 5 Class Distribution -------------------- 50% | Mutant 42% | Derelict-Mutant 3% | Hacker-Scout Dominant Class ---------------- Mutant | -10/Materials Mutant | -10/Subcaves Derelict-Mutant | -8/Recycling Derelict-Mutant | -8/Scraptown Hacker-Scout | -6/Factory Resources | -11 -10 -10 -8 -8 -6 ----------- Run | Yrd Mat Sub Rec Scr Fac Matter Collected 1190 | 220 237 294 12 50 377 Remotely . | . . . . . . Salvage Created 1672 | 196 592 171 320 . 393 Parts 81 | 10 36 13 16 . 6 Haulers Intercepted 5 | . 2 . . . 3 Recyclers Shooed . | . . . . . . Parts Field Recycled . | . . . . . . Retrieved Matter . | . . . . . . Parts Self-Destructed . | . . . . . . Prevented . | . . . . . . Parts Restored . | . . . . . . Kills | -11 -10 -10 -8 -8 -6 ------- Run | Yrd Mat Sub Rec Scr Fac Combat Hostiles Destroyed 28 | . 14 6 6 . 2 Melee 2 | . . 1 . . 1 Guns 19 | . 14 5 . . . Cannons 4 | . . . 4 . . Classes Destroyed 13 | 2 6 2 2 . 1 Builder 1 | . . . 1 . . Tunneler 5 | 5 . . . . . Hauler 5 | . 2 . . . 3 Recycler 2 | 1 1 . . . . Mechanic 1 | . 1 . . . . Operator 1 | . 1 . . . . Watcher 4 | . 3 . . . 1 Swarmer 4 | . 3 1 . . . Grunt 14 | . 11 . 2 . 1 Sentry 4 | . . . 4 . . Programmer 1 | . . . . . 1 Artisan 2 | . . 2 . . . Subdweller 5 | . . 5 . . . Best Kill Streak 6 | 4 6 2 2 . 1 Combat Bots Only 5 | . 5 2 2 . 1 Max Kills in Single Turn 3 | 1 3 1 1 . 1 Gunslinging . | . . . . . . Exploded . | . . . . . . Melee 1 | . . 1 . . 1 Uniques/NPCs Destroyed . | . . . . . . Combat | -11 -10 -10 -8 -8 -6 -------- Run | Yrd Mat Sub Rec Scr Fac Hostile Shots Fired 190 | . 46 30 8 . 106 Missed 67 | . 12 2 . . 53 Hits 123 | . 34 28 8 . 53 Projectile 123 | . 34 28 8 . 53 AOE 1 | . . . . . 1 Critical Strikes 5 | . . 2 . . 3 Damage Taken 2066 | . 459 538 121 . 948 Core 348 | . 82 52 . . 214 Absorbed by Shields . | . . . . . . Ignored by Resistances 17 | . . . . . 17 Core Remaining (%) 73 | 100 . . . 46 . Volleys Fired 141 | 14 41 62 8 . 16 Largest 2 | 2 2 2 2 . 1 Hottest 160 | 90 130 160 160 . 80 Shots Fired 224 | 28 82 82 16 . 16 Gun 184 | 28 82 65 . . 9 Cannon 40 | . . 17 16 . 7 Launcher . | . . . . . . Special . | . . . . . . Kinetic 53 | . 2 42 . . 9 Thermal 165 | 22 80 40 16 . 7 Explosive . | . . . . . . Electromagnetic 6 | 6 . . . . . Robot Hit Streak 20 | 9 12 20 7 . 10 Robot Miss Streak 8 | 3 8 4 1 . 2 Penetration Max 1 | . . . . . 1 Secondary Targets 4 | . 3 1 . . . Max Gunslinging Chain 1 | . 1 1 . . . Shots Hit Robots 162 | 19 69 42 11 . 21 Core Hits 132 | 7 92 25 4 . 4 Critical Kills 3 | . . 1 2 . . Critical Parts Destroyed 5 | . . 1 . . 4 Critical Strikes 8 | . . 2 2 . 4 Meltdown 3 | . . 1 2 . . Destroy 1 | . . 1 . . . Smash 4 | . . . . . 4 Melee Attacks 25 | . . . . . 25 Impact 25 | . . . . . 25 Slashing . | . . . . . . Piercing . | . . . . . . Sneak Attacks 3 | . . . . . 3 Combat Hostiles . | . . . . . . Follow-up Attacks . | . . . . . . Damage Inflicted 3429 | 264 992 659 381 . 1133 Guns 1903 | 234 970 565 . . 134 Cannons 555 | . . 88 359 . 108 Explosions 30 | 30 . . . . . Melee 891 | . . . . . 891 Ramming 50 | . 22 6 22 . . Kinetic 383 | . . 249 . . 134 Thermal 2066 | 225 970 404 359 . 108 Explosive . | . . . . . . Electromagnetic 39 | 39 . . . . . Impact 891 | . . . . . 891 Slashing . | . . . . . . Piercing . | . . . . . . Highest Corruption 4 | . . . . . 4 Average Corruption 3 | . . . . . 3 Corruption Purged . | . . . . . . Corruption Blocked . | . . . . . . Effects 11 | . . . . . 11 Message Errors 3 | . . . . . 3 Matter Fused 3 | . . . . . 3 Heat Flow Errors 2 | . . . . . 2 Parts Rejected 1 | . . . . . 1 Data Loss (minor) 2 | . . . . . 2 Overload Shots . | . . . . . . Overflow Damage 469 | . . . 11 . 458 Projectiles 11 | . . . 11 . . Explosions . | . . . . . . Melee 458 | . . . . . 458 Knockbacks 1 | . 1 . . . . Impact 1 | . 1 . . . . Kinetic . | . . . . . . Secondary . | . . . . . . Self-Inflicted Damage . | . . . . . . Shots . | . . . . . . Rammed 9 | . 4 1 4 . . Targets Rammed 12 | . 5 2 5 . . Kicked 1 | . 1 . . . . Crushed 2 | . . 1 1 . . Highest Temperature 503 | 240 503 96 234 . 160 Average Temperature 107 | 115 124 35 104 . 61 Received Heat Transfer 480 | . 213 36 45 . 186 Effects 1 | . 1 . . . . Damage (minor) 1 | . 1 . . . . Siege Activations . | . . . . . . Martial Activations . | . . . . . . Shielding Activations . | . . . . . . Robots Disrupted . | . . . . . . Combat Hostiles . | . . . . . . Robots Corrupted 3 | . . . . . 3 Combat Hostiles 1 | . . . . . 1 Parts Fried 3 | . . . . . 3 Impact Corruptions 13 | . . . . . 13 Robots Melted 3 | . . 1 2 . . Combat Hostiles 2 | . . . 2 . . Parts Melted 6 | 2 . . 4 . . Heat Transferred 2981 | 582 1200 570 481 . 148 Parts Sabotaged . | . . . . . . Parts Stolen . | . . . . . . Parts Stripped . | . . . . . . Power Chain Reactions 1 | 1 . . . . . Alert | -11 -10 -10 -8 -8 -6 ------- Run | Yrd Mat Sub Rec Scr Fac Maximum Alert Level 1 | . . . . . 1 Low Security (%) 94 | 100 100 . 100 . 74 Level 1 5 | . . . . . 25 Level 2 . | . . . . . . Level 3 . | . . . . . . Level 4 . | . . . . . . Level 5 . | . . . . . . High Security . | . . . . . . Max Security . | . . . . . . Peak Influence 376 | 10 147 . 101 . 376 Initial 24 | . . . 24 . . Average 57 | 3 71 . 25 . 139 Influence Increases 1588 | 30 448 50 321 . 739 Destroy 0b10 Robot/C 460 | . 280 20 120 . 40 Destroy 0b10 Robot/NC 95 | 30 40 . 5 . 20 Destroy Leader 98 | . 80 . . . 18 Successful Hack 99 | . 18 . 43 . 38 Select Force Hacks 180 | . 30 . 150 . . Disable Machine 15 | . . . . . 15 Destroy Structure 11 | . . . 3 . 8 Partial Spotted 15 | . . . . . 15 Lose Combat Pursuer 615 | . . 30 . . 585 Influence Decreases 1374 | 30 434 14 371 . 525 Entered New Map 33 | . . 7 26 . . Time Decay 1144 | 30 424 7 345 . 338 Search Patrol Dispatched 100 | . . . . . 100 Lost Part 90 | . 10 . . . 80 Lost Ally 7 | . . . . . 7 Squads Dispatched 8 | . 3 . . . 5 Investigation 5 | . 2 . . . 3 Extermination 2 | . . . . . 2 Reinforcement 1 | . 1 . . . . Assault . | . . . . . . Garrison . | . . . . . . Intercept . | . . . . . . Searches Triggered 1 | . . . . . 1 Construction Impeded . | . . . . . . Haulers Reinforced . | . . . . . . Active Scanning Responses . | . . . . . . Cargo Convoy Interrupts 1 | . . . . . 1 Stealth | -11 -10 -10 -8 -8 -6 --------- Run | Yrd Mat Sub Rec Scr Fac Distress Signals 4 | . 2 . . . 2 Communications Jammed . | . . . . . . Distress Signals . | . . . . . . Times Spotted 87 | . 19 10 4 . 54 Peak Tracking Total 16 | . 6 6 . . 16 Tactical Retreats 16 | . . 1 . . 15 Traps | -11 -10 -10 -8 -8 -6 ------- Run | Yrd Mat Sub Rec Scr Fac Traps Triggered 12 | . 7 1 . . 4 Indirectly . | . . . . . . Trap Hack Attempts . | . . . . . . Triggered . | . . . . . . Disarmed . | . . . . . . Reprogrammed . | . . . . . . Reused . | . . . . . . Traps Extracted . | . . . . . . Installed . | . . . . . . Triggered . | . . . . . . Machines | -11 -10 -10 -8 -8 -6 ---------- Run | Yrd Mat Sub Rec Scr Fac Machines Disabled 1 | . . . . . 1 Max in Single Turn 1 | . . . . . 1 Garrison Access 1 | . . . . . 1 Machines Repaired . | . . . . . . Machines Dismantled . | . . . . . . Machines Sabotaged . | . . . . . . Overloaded Fab Kills . | . . . . . . Hacking | -11 -10 -10 -8 -8 -6 --------- Run | Yrd Mat Sub Rec Scr Fac Machines Accessed 28 | . 7 1 10 1 9 Terminals 17 | . 6 . 5 . 6 Fabricators 1 | . . . . . 1 Repair Stations . | . . . . . . Recycling Units 7 | . 1 . 5 . 1 Scanalyzers . | . . . . . . Garrison Access 1 | . . . . . 1 Total Hacks 84 | . 21 1 28 4 30 Successful 49 | . 9 1 19 4 16 Failed 34 | . 11 . 9 . 14 Catastrophic 2 | . . . 2 . . Database Lockouts 1 | . 1 . . . . Manual 64 | . 19 . 22 . 23 Terminals 67 | . 20 . 23 . 24 Fabricators 3 | . . . . . 3 Repair Stations . | . . . . . . Recycling Units 8 | . 1 . 5 . 2 Scanalyzers . | . . . . . . Garrison Access 1 | . . . . . 1 Terminal Hacks 19 | . 2 1 7 4 5 Record 4 | . . . . 4 . Part Schematic 3 | . . . 1 . 2 Robot Analysis 8 | . 2 . 6 . . Terminal Index 1 | . . . . . 1 Locate Traps 2 | . . . . . 2 Proto ID Catalog 1 | . . 1 . . . Fabricator Hacks 2 | . . . . . 2 Load Schematic 1 | . . . . . 1 Build 1 | . . . . . 1 Repair Station Hacks . | . . . . . . Recycling Unit Hacks . | . . . . . . Scanalyzer . | . . . . . . Garrison Access Hacks 1 | . . . . . 1 Seal Access 1 | . . . . . 1 Unauthorized Hacks 27 | . 7 . 12 . 8 Terminals 20 | . 6 . 7 . 7 Assimilate 1 | . . . . . 1 Botnet 6 | . 1 . 2 . 3 Skim 13 | . 5 . 5 . 3 Fabricators . | . . . . . . Repair Stations . | . . . . . . Recycling Units 7 | . 1 . 5 . 1 Tunnel 6 | . 1 . 5 . . Fedlink 1 | . . . . . 1 Scanalyzers . | . . . . . . Garrison Access . | . . . . . . Data Cores Recovered . | . . . . . . Used . | . . . . . . Hacking Detections 12 | . 6 . 2 . 4 Full Trace Events 2 | . . . . . 2 Feedback Events . | . . . . . . Feedback Blocked . | . . . . . . Robot Schematics Acquired . | . . . . . . Robots Built . | . . . . . . Authchips . | . . . . . . Time . | . . . . . . Total Robot Build Rating . | . . . . . . Part Schematics Acquired 3 | . . . 1 . 2 Parts Built 2 | . . . . . 2 Authchips . | . . . . . . Time 47 | . . . . . 47 Total Part Build Rating 10 | . . . . . 10 Part Studies Acquired . | . . . . . . Parts Repaired . | . . . . . . Time . | . . . . . . Parts Recycled . | . . . . . . Recycled Matter . | . . . . . . Retrieved Matter . | . . . . . . Retrieved Components . | . . . . . . Parts Scanalyzed . | . . . . . . Part Schematics Acquired . | . . . . . . Parts Damaged . | . . . . . . Bothacking | -11 -10 -10 -8 -8 -6 ------------ Run | Yrd Mat Sub Rec Scr Fac Used RIF Installer . | . . . . . . Robots Hacked . | . . . . . . Non-combat . | . . . . . . Combat . | . . . . . . Robot Hacks Applied . | . . . . . . Relay Couplers Released 3 | . . . . . 3 Machine Destruction 3 | . . . . . 3 Fabnet Peak Effective % . | . . . . . . Robots Rewired 1 | . . . 1 . . Allies Hacked . | . . . . . . Hacks Repelled . | . . . . . . Allies | -11 -10 -10 -8 -8 -6 -------- Run | Yrd Mat Sub Rec Scr Fac Total Allies 2 | . . . 1 . 1 Largest Group 1 | . . . 1 1 1 Highest-Rated Group 27 | . . . 27 27 27 Highest-Rated Ally 27 | . . . 27 27 27 Initial UFD Resources 24 | . . . . . 24 Total Orders 2 | . . . . . 2 STAY 2 | . . . . . 2 Ally Attacks . | . . . . . . Total Damage . | . . . . . . Kills . | . . . . . . Allies Corrupted . | . . . . . . Allies Melted . | . . . . . . Intel | -11 -10 -10 -8 -8 -6 ------- Run | Yrd Mat Sub Rec Scr Fac Active Infowar (turns) 1098 | 4 32 . . . 1062 Optics 1062 | . . . . . 1062 Sensors 675 | . . . . . 675 Structural 13 | . 2 . . . 11 Seismic 37 | 4 30 . . . 3 T.N.C. 343 | . . . . . 343 Robot Analysis Total 8 | . 2 . 6 . . Derelict Logs Recovered 5 | . . 1 . 4 . Drone Launches . | . . . . . . Drone Recoveries . | . . . . . . Exploration | -11 -10 -10 -8 -8 -6 ------------- Run | Yrd Mat Sub Rec Scr Fac Turns Passed 11639 | 81 1110 3129 3018 3235 1066 Spaces Moved 5994 | 5 521 1678 1136 1239 1415 Core 5 | . 5 . . . . Treads 4311 | . 273 1663 1136 1239 . Legs 248 | 5 243 . . . . Wheels 15 | . . 15 . . . Hover 896 | . . . . . 896 Flight 519 | . . . . . 519 Fastest Speed 30 | 120 120 130 260 260 30 Average Speed 176 | 120 153 171 260 260 49 Slowest Speed 500 | 120 500 260 260 360 180 Overloaded Moves . | . . . . . . Propulsion Burnouts . | . . . . . . Robots Hopped 5 | . . . . . 5 Potential Cave-ins . | . . . . . . Cave-ins Triggered . | . . . . . . Exploration Rate (%) 64 | 2 90 83 94 84 36 Regions Visited 5 Branch Regions 3 Pre-discovered Areas 13 | . 2 1 7 3 . Known Exits Taken 4 | . 1 1 1 1 . Unknown Exits Taken 1 | 1 . . . . . Scrap Searched 13 | . . 10 . 3 . Spaces Dug 9 | . . 1 . . 8 Terrain Destroyed 16 | 4 . 1 3 . 8 Melee 7 | . . . . . 7 Projectile 5 | . . 1 3 . 1 AOE 4 | 4 . . . . . Terrain Rammed . | . . . . . . Walls Destroyed . | . . . . . . Machines Disabled . | . . . . . . Actions | -11 -10 -10 -8 -8 -6 --------- Run | Yrd Mat Sub Rec Scr Fac Total 6777 | 51 743 1842 1179 1252 1710 Wait 399 | 31 125 54 8 . 181 Move 5981 | 4 520 1678 1135 1238 1406 Hop 4 | . . . . . 4 Pick Up 44 | . 15 11 5 5 8 Fast Attach 31 | 1 11 2 . . 17 Attach 19 | . 2 3 . 2 12 Detach 5 | . . 1 . . 4 Swap 44 | 1 12 17 2 4 8 Drop 58 | . 12 13 4 3 26 Fire 141 | 14 41 62 8 . 16 Melee 25 | . . . . . 25 Ram . | . . . . . . Kick 1 | . 1 . . . . Crush 10 | . 4 1 5 . . Escape Stasis . | . . . . . . Rewire 12 | . . . 12 . . Trap . | . . . . . . Miscellaneous 3 | . . . . . 3 Route ------- -11/Scrapyard -10/Materials (discovered 6 exits: [*Mat x3] / [*Min x2] / *Sub) -10/Subcaves (discovered 3 exits: *Mat x2 / *Rec) -8/Recycling (discovered 2 exits: *Fac / *Scr) -8/Scraptown (discovered 2 exits: *Fac x2) -6/Factory (discovered 1 exit: [*Fac]) History --------- Turn | Location | Event 10 | -11/Scrapyard | Discovered new exit (range 2) 82 | -11/Scrapyard | Entered Materials 234 | -10/Materials | Discovered new exit (range 16) 306 | -10/Materials | Build established: Mutant 437 | -10/Materials | Central database locked down 440 | -10/Materials | Discovered new exit (range 16) 696 | -10/Materials | Discovered new exit (range 13) 836 | -10/Materials | Discovered new exit (range 13) 946 | -10/Materials | Learned 2 Mines zone layouts 956 | -10/Materials | Discovered new exit (range 6) 979 | -10/Materials | Learned location of 1 exit from Storage 1015 | -10/Materials | Learned 4 Subcaves zone layouts 1035 | -10/Materials | Learned location of 1 exit from Recycling 1059 | -10/Materials | Identified exit to Subcaves 1059 | -10/Materials | Learned location of 1 exit from Materials 1192 | -10/Materials | Entered Subcaves 1193 | -10/Subcaves | Identified exit to Materials 1194 | -10/Subcaves | Identified exit to Recycling 1225 | -10/Subcaves | Shifting Twisted Machinery released Spk. Treads 1232 | -10/Subcaves | Shifting Twisted Machinery released Mak. System Restoration Module 1526 | -10/Subcaves | Disturbed a concealed Subdweller 1797 | -10/Subcaves | A swath of the cavern ceiling suddenly collapsed 2285 | -10/Subcaves | Learned location of Storage (-8) 2673 | -10/Subcaves | Visited 4L-MR0's lab 2948 | -10/Subcaves | Shifting Twisted Machinery released Sub. Optics 2972 | -10/Subcaves | Shifting Twisted Machinery released Sub. Power Source 3012 | -10/Subcaves | A swath of the cavern ceiling suddenly collapsed 3353 | -10/Subcaves | Core integrity fell below 50% 4321 | -10/Subcaves | Entered Recycling 4322 | -8/Recycling | Identified exit to Scraptown 4538 | -8/Recycling | Scanned before Scraplab entrance 5104 | -8/Recycling | Discovered new exit (range 15) 5948 | -8/Recycling | Build established: Derelict-Mutant 6129 | -8/Recycling | Learned 2 Storage zone layouts 6258 | -8/Recycling | Learned Storage terminal intel 6305 | -8/Recycling | Learned Factory emergency access door positions 6341 | -8/Recycling | Learned Storage trap positions 6369 | -8/Recycling | Learned location of 1 exit from Recycling 6416 | -8/Recycling | Learned location of Zion (-7) 6506 | -8/Recycling | Identified exit to Factory 6564 | -8/Recycling | Learned location of 1 exit from Lower Caves 6850 | -8/Recycling | Entered Scraplab 7339 | -8/Recycling | Entered Scraptown 7339 | -8/Scraptown | Accompanied by 1 ally 7813 | -8/Scraptown | Discovered exit to Factory (range 11) 7852 | -8/Scraptown | Scanned Subdweller tech in exchange for log data 7857 | -8/Scraptown | Learned Research garrison access intel 7859 | -8/Scraptown | Learned Research stockpile data 7862 | -8/Scraptown | Learned Research terminal intel 7865 | -8/Scraptown | Learned Research emergency access door positions 7976 | -8/Scraptown | Visited Red Mages 7995 | -8/Scraptown | Visited Comm Corps 8365 | -8/Scraptown | Visited UFD Registry 8365 | -8/Scraptown | Registered with UFD as "Hammergunner" 8432 | -8/Scraptown | Heard Great Nut preacher, LISTEN AND RECITE! 8711 | -8/Scraptown | Guru changed UFD alias to "Wavedrive" 8835 | -8/Scraptown | Visited CPS Storage 8867 | -8/Scraptown | Visited Cyclists 8887 | -8/Scraptown | Entered Cyclist Reading Room 9023 | -8/Scraptown | Visited Fellowship of the Rings 9082 | -8/Scraptown | Visited Derelict Rescue Squad 9150 | -8/Scraptown | Visited Chapter 10 9225 | -8/Scraptown | Delivered Scrap Shield to a Scientist 9337 | -8/Scraptown | Visited Research Penetration Think Tank 9392 | -8/Scraptown | Visited DA-N13 Charitable Foundation 9415 | -8/Scraptown | Found DCF Scrap (30 items) 9467 | -8/Scraptown | Visited Scrap Suit Storage 9491 | -8/Scraptown | Visited Modified Component R&D 9579 | -8/Scraptown | Visited Scrapoid Pod Storage 9626 | -8/Scraptown | Visited Observation Area 9735 | -8/Scraptown | Visited Curators Association 10423 | -8/Scraptown | Met Optimus 10423 | -8/Scraptown | Accepted into 0bPrime 10569 | -8/Scraptown | Discovered exit to Factory (range 3) 10574 | -8/Scraptown | Entered Factory 10574 | -6/Factory | Accompanied by 1 ally 10574 | -6/Factory | Evolved 8 slots: Propulsion x3, Utility x5 10887 | -6/Factory | Discovered new exit (range 11) 10895 | -6/Factory | Loaded intel: 8 recycling unit locations 10906 | -6/Factory | Spotted B-75 Beast 11118 | -6/Factory | Fabricated Weapon Mount? 11295 | -6/Factory | Cargo convoy interrupted 11624 | -6/Factory | Search patrols dispatched 11640 | -6/Factory | Self-destructed Last Messages --------------- Map updated. 11573_ ALERT: Suspicious activity at Terminal F001. Dispatching Investigation squad. 11579_ Acquired 29 matter. 11593_ Discarded Imp. Melee Analysis Suite. 11593_ Acquired Adv. Sensor Array. 11599_ System corrupted: Component data lost. 11623_ Acquired Prototype Ballistic Cannon. 11623_ Identified Antimatter Cannon. 11624_ ALERT: Heightened foreign activity detected, multiple search patrols dispatched. 11624_ Dropped Antimatter Cannon. 11632_ Acquired Prototype Flight Unit. 11632_ Identified Cld. Cesium-ion Thruster. 11639_ Cesium-ion Thruster destroyed. 11640_ Connecting with Terminal... >>Traps(Locate) Found 4 traps in 1 array: 4x Stasis Trap Map updated. Map ----- +----------------------------------------------------+ | ????????????????????????????###################?## | | ????????????????????????????# #?# | | ????????????????????????????# ! #?# | | ????????????????????????????# #?# | | ????????????????????????????# #?# | | ????????????????????????????# ### | | ????????????????????????????# + + | | ????????????????????????????# ### | | ??????????????????????????###+#######+############ | | ??????????????????????????# | | ??????????????????????????# | | ??????????????????????????# | | ?????????????????+????????# | | ??????????????????????????# | | ?????????????????????###+####+#################### | | ?????????????????????# #????????? | | ?????????????????????# """"""""" #????????? | | ?????????????????????# #????????? | | ?????????????????????# """"""""" #????????? | | ?????????????????????# #????????? | | ??????????k??????????# """"""""" #????????? | | ?????????????????????# #????????? | | ?????????????????????# ! #????????? | | ?????????????????????###+############+###????????? | | ??????????????????????# #?????????????? | | ??????????????????????#""@ #?????????????? | | ??????????????????????#"T +?????????????? | | ??????????????????????#"" ! #?????????????? | | ??????????????????????# """ #?????????????? | | ??????????????????????# """ #?????????????? | | ??????????????????????# !! """ #?????????????? | | ??????????????????????# !s #?????????????? | | ??????????????????????# """ #?????????????? | | ??????????????????????#Y ss""" #?????????????# | | ?????????????????????? """ ???????????????# | | ?????????H????????????# s ?? ???????????????? | | ??????????????????????#####/#+????#??????????????? | | ??????????????????????????k ?^^???????########??? | | ??????????????????????????? ?^^???????? ??? | | ??????????????????????????? ??????????? ?? | | ??????????????????????????? ???????????? ?? | | ??????????????????????????? T???????????? ? | | ???????????????????????????? ????????????" """" ? | | ???????????????????????????? ???????????"" """" | | ?????????????????????????????????????????"" """" | | ?????????????????????????????????????????"" """" | | ?????????????????????????????????????????"" """" | | ?????????????????????????????????????????"" """" | | ????????????????????????????????????????? ? | | ???????????????????????????????????????? ! ? | +----------------------------------------------------+ Best States ------------- Heat Dissipation 39 Energy Generation 15 Energy Capacity 250 Matter Stores 300 Matter Capacity 300 Sight Range 20 Robot Scan Range 16 Terrain Scan Density 10 Armor Coverage 225 Resistance: TH 10 Evasion (%) 64 Targeting Accuracy 8 Melee Accuracy 18 Recoil Reduction 2 Offensive Hacking 10 Defensive Hacking 11 Item Schematics ----------------- Adv. Signal Interpreter | -8/Recycling | Hacked Adv. System Restoration Module | -6/Factory | Hacked Weapon Mount | -6/Factory | Hacked Robot Schematics ------------------ None Fabricated ------------ Weapon Mount | x2 | -6/Factory Repaired ---------- Nothing Studied --------- None Alien Tech Used ----------------- None Achievements -------------- None Challenges ------------ None Game ------ Seed FluxRecoilInjector Manual? 0 Play Time 00:50:38 Cumulative 569.6 hours Start 2026.06.18 @ 22:07:54 End 2026.06.19 @ 00:15:34 Sessions 3 Manual Loads 0 Difficulty Rogue Special Mode None Game No. 488 Rogue 452 Adventurer 36 Explorer 0 Win Type - Total 5 Types 2/0/0/1/0/0/0/2/0/0 Lore% 83 Gallery% 73 Achievement% 64 Wizard Run 0 Options --------- Layout 2 ASCII 0 Keyboard 0 Movement Numpad Keybinds 0 Fullscreen 1 Font 48/Smallcaps Map View 50x44 Zoom Use 0% Tactical HUD 1 Map Filters NONE Filters NONE Steam 1 RUN: 9bb88197-9029-4dc6-bfd5-a52116f31838